bitfinex/quotes_BTCUSD_20241024
["timestamp","ask_amount","ask_price","bid_price","bid_amount"]
[1729740260316,1.00981804,67408.0,67407.0,0.00165]
[1729740261418,0.85931423,67408.0,67407.0,0.00165]
[1729740261635,0.95022462,67408.0,67407.0,0.00165]
[1729740262068,0.85931423,67408.0,67407.0,0.00165]
[1729740262295,0.83936849,67408.0,67407.0,0.00165]
[1729740262728,0.95022462,67408.0,67407.0,0.00165]
[1729740263185,0.83936849,67408.0,67407.0,0.00165]
[1729740263418,0.95020174,67408.0,67407.0,0.00165]
[1729740264067,0.95102674,67408.0,67407.0,0.00165]
[1729740265216,0.84019349,67408.0,67407.0,0.00165]
[1729740266287,0.8402089,67408.0,67407.0,0.00165]
[1729740266704,0.8461459,67408.0,67407.0,0.00165]
[1729740268240,0.9205091,67408.0,67407.0,0.00165]
[1729740268676,0.9185091,67408.0,67407.0,0.00165]
[1729740270388,0.9205091,67408.0,67407.0,0.00165]
[1729740271046,0.82959871,67408.0,67407.0,0.00165]
[1729740273541,0.87274593,67408.0,67407.0,0.00165]
[1729740275255,0.82959871,67408.0,67407.0,0.00165]
[1729740276186,0.87277847,67408.0,67407.0,0.00165]
[1729740277860,1.00581835,67408.0,67407.0,0.00165]
[1729740278061,0.87277847,67408.0,67407.0,0.00165]
[1729740279565,1.00621454,67408.0,67407.0,0.00165]
[1729740281578,0.79863383,67408.0,67407.0,0.00165]
[1729740286100,0.30961839,67392.0,67391.0,0.21727268]
[1729740286307,0.40155638,67392.0,67391.0,0.21727268]
[1729740286509,0.40155638,67392.0,67391.0,0.01260018]
[1729740286510,0.33484437,67392.0,67391.0,0.01260018]
[1729740286757,0.24171,67391.0,67390.0,0.0758]
[1729740286977,0.24171,67391.0,67390.0,0.1058]
[1729740287205,0.30842201,67391.0,67390.0,0.1058]
[1729740287401,0.40594153,67391.0,67390.0,0.1058]
[1729740287842,0.30844443,67391.0,67390.0,0.11044195]
[1729740288298,0.24171,67391.0,67390.0,0.11209195]
[1729740289340,0.40600901,67391.0,67390.0,0.11209195]
[1729740289962,0.24171,67391.0,67390.0,0.20509195]
[1729740290166,0.40602818,67391.0,67390.0,0.20509195]
[1729740290582,0.49497752,67391.0,67390.0,0.20509195]
[1729740290831,0.40602818,67391.0,67390.0,0.20509195]
[1729740291041,0.40602818,67391.0,67390.0,0.20509194]
[1729740293200,0.49497752,67391.0,67390.0,0.20509194]
[1729740293628,0.49497752,67391.0,67390.0,0.20509195]
[1729740293833,0.49497752,67391.0,67390.0,0.20509197]
[1729740294052,0.49511921,67391.0,67390.0,0.20509193]
[1729740294501,0.16435944,67391.0,67390.0,0.35095381]
[1729740294721,0.118702,67396.0,67391.0,0.1708]
[1729740294722,0.04452497,67393.0,67391.0,0.1708]
[1729740294936,0.04452497,67394.0,67391.0,0.15050381]
[1729740295146,0.16322897,67394.0,67393.0,0.1708]
[1729740295385,0.16322897,67394.0,67393.0,0.17544143]
[1729740295386,0.25413936,67394.0,67393.0,0.17544143]
[1729740295861,0.16322897,67394.0,67393.0,0.17544143]
[1729740297570,0.16322897,67394.0,67393.0,0.18804093]
[1729740298229,0.118704,67394.0,67393.0,0.18804093]
[1729740298658,0.118704,67394.0,67393.0,0.18804086]
[1729740299080,0.118704,67394.0,67393.0,0.1833995]
[1729740299295,0.118704,67394.0,67393.0,0.18804086]
[1729740299739,0.119529,67394.0,67393.0,0.18804086]
[1729740300777,0.000825,67394.0,67393.0,0.33854467]
[1729740301214,0.000825,67394.0,67393.0,0.1833995]
[1729740301449,0.119529,67394.0,67393.0,0.1880408]
[1729740301664,0.000825,67394.0,67393.0,0.1880408]
[1729740305531,0.119529,67394.0,67393.0,0.1880408]
[1729740306248,0.000825,67394.0,67393.0,0.1880408]
[1729740307143,0.000825,67394.0,67393.0,0.1754413]
[1729740307327,0.000825,67394.0,67393.0,0.18802488]
[1729740308422,0.000825,67394.0,67393.0,0.18802476]
[1729740308843,0.000825,67394.0,67393.0,0.18802474]
[1729740315510,0.000825,67394.0,67393.0,0.18338358]
[1729740315745,0.000825,67394.0,67393.0,0.18802464]
[1729740319168,0.000825,67394.0,67393.0,0.18338358]
[1729740319382,0.000825,67394.0,67393.0,0.18802466]
[1729740322670,0.000825,67394.0,67393.0,0.18338358]
[1729740322890,0.000825,67394.0,67393.0,0.18802465]
[1729740323935,0.119529,67394.0,67393.0,0.18802465]
[1729740324389,0.000825,67394.0,67393.0,0.18802465]
[1729740325781,0.000825,67394.0,67393.0,0.33852846]
[1729740325987,0.000825,67394.0,67393.0,0.54814485]
[1729740326198,0.000825,67394.0,67393.0,0.45723446]
[1729740329906,0.000825,67394.0,67393.0,0.45259339]
[1729740330120,0.000825,67394.0,67393.0,0.45723409]
[1729740332143,0.000825,67394.0,67393.0,0.45723407]
[1729740340883,0.000825,67394.0,67393.0,0.45723408]
[1729740341149,0.000825,67394.0,67393.0,0.45259339]
[1729740341389,0.000825,67394.0,67393.0,0.45723419]
[1729740343792,0.000825,67394.0,67393.0,0.55314458]
[1729740344519,0.000825,67394.0,67393.0,0.54850378]
[1729740344748,0.000825,67394.0,67393.0,0.55314432]
[1729740345470,0.000825,67394.0,67393.0,0.46223393]
[1729740348436,0.000825,67394.0,67393.0,0.46223405]
[1729740349591,0.000825,67394.0,67393.0,0.29143405]
[1729740350217,0.000825,67394.0,67393.0,0.38673405]
[1729740350427,0.000825,67394.0,67393.0,0.46683405]
[1729740352418,0.000825,67394.0,67393.0,0.46219339]
[1729740352649,0.000825,67394.0,67393.0,0.46683405]
[1729740359645,0.000825,67394.0,67393.0,0.4668341]
[1729740362665,0.000825,67394.0,67393.0,0.46219339]
[1729740362893,0.000825,67394.0,67393.0,0.46683405]
[1729740364602,0.000825,67394.0,67393.0,0.47425911]
[1729740372540,0.000825,67394.0,67393.0,0.39415911]
[1729740376058,0.000825,67394.0,67393.0,0.39415913]
[1729740376279,0.000825,67394.0,67393.0,0.38209339]
[1729740376507,0.000825,67394.0,67393.0,0.39415913]
[1729740377788,0.000825,67394.0,67393.0,0.17515313]
[1729740377789,0.119529,67394.0,67393.0,0.17515313]
[1729740381122,0.000825,67394.0,67393.0,0.17515313]
[1729740384081,0.000825,67394.0,67393.0,0.17515404]
[1729740385564,0.000825,67394.0,67393.0,0.29386004]
[1729740387111,0.000825,67394.0,67393.0,0.17515404]
[1729740387375,0.000825,67394.0,67393.0,0.16308739]
[1729740387586,0.000825,67394.0,67393.0,0.17515389]
[1729740392578,0.000825,67394.0,67393.0,0.17515383]
[1729740395019,0.000825,67394.0,67393.0,0.16308739]
[1729740395257,0.000825,67394.0,67393.0,0.17515381]
[1729740404447,0.000825,67394.0,67393.0,0.17515393]
[1729740405765,0.000825,67394.0,67393.0,0.17051295]
[1729740405968,0.000825,67394.0,67393.0,0.16308739]
[1729740406169,0.000825,67394.0,67393.0,0.17515383]
[1729740410476,0.000825,67394.0,67393.0,0.29385983]
[1729740410687,0.000825,67394.0,67393.0,0.39115983]
[1729740410901,0.000825,67394.0,67393.0,0.55947022]
[1729740411107,0.000825,67394.0,67393.0,0.56447022]
[1729740413003,0.000825,67394.0,67393.0,0.56446944]
[1729740413244,0.000825,67394.0,67393.0,0.47355905]
[1729740413951,0.000825,67394.0,67393.0,0.39615905]
[1729740414203,0.000825,67394.0,67393.0,0.17515305]
[1729740416944,0.119529,67394.0,67393.0,0.17515377]
[1729740417381,0.000825,67394.0,67393.0,0.17515377]
[1729740420096,0.000825,67394.0,67393.0,0.16308739]
[1729740420308,0.000825,67394.0,67393.0,0.17515408]
[1729740420977,0.119529,67394.0,67393.0,0.02465027]
[1729740421204,0.3373719,67394.0,67393.0,0.01722461]
[1729740421410,0.29285491,67394.0,67393.0,0.00464103]
[1729740422043,0.35740448,67394.0,67393.0,0.00464103]
[1729740422651,0.35740448,67394.0,67391.0,0.00165]
[1729740422652,0.118708,67392.0,67391.0,0.00165]
[1729740422858,0.16322247,67392.0,67391.0,0.00629145]
[1729740423060,0.16322269,67392.0,67391.0,0.00629145]
[1729740424940,0.118708,67392.0,67391.0,0.00629145]
[1729740425152,0.237413,67393.0,67391.0,0.00629145]
[1729740425352,0.118708,67392.0,67391.0,0.00165]
[1729740425578,0.118708,67392.0,67391.0,0.0062913]
[1729740426216,0.118708,67392.0,67391.0,0.00629143]
[1729740426429,0.16321472,67392.0,67391.0,0.00629143]
[1729740426901,0.16544046,67392.0,67391.0,0.00629143]
[1729740427324,0.16321472,67392.0,67391.0,0.00629149]
[1729740427526,0.04450672,67393.0,67391.0,0.00629149]
[1729740427667,0.118708,67393.0,67392.0,0.00464149]
[1729740427868,0.000825,67394.0,67392.0,0.00464149]
[1729740428147,0.000825,67394.0,67391.0,0.00165]
[1729740428148,0.356939,67394.0,67393.0,0.00464149]
[1729740428595,0.356939,67394.0,67391.0,0.00165]
[1729740428596,0.657339,67394.0,67391.0,0.00165]
[1729740428798,0.51001839,67392.0,67391.0,0.00165]
[1729740429013,0.67426757,67392.0,67391.0,0.00165]
[1729740430742,0.78544236,67392.0,67391.0,0.00165]
[1729740431194,0.67426757,67392.0,67391.0,0.00165]
[1729740432278,0.76318253,67392.0,67391.0,0.00165]
[1729740433289,0.66926757,67392.0,67391.0,0.00165]
[1729740433510,0.67426757,67392.0,67391.0,0.00165]
[1729740433963,0.26831039,67392.0,67391.0,0.00165]
[1729740434442,0.43145495,67392.0,67391.0,0.00165]
[1729740434688,0.38701839,67392.0,67391.0,0.00165]
[1729740435394,0.4314482,67392.0,67391.0,0.00165]
[1729740435818,0.38701839,67392.0,67391.0,0.00165]
[1729740437311,0.52001839,67392.0,67391.0,0.00165]
[1729740437522,0.7571977,67392.0,67391.0,0.00165]
[1729740437731,0.92118216,67392.0,67391.0,0.00165]
[1729740437939,1.01005528,67392.0,67391.0,0.00165]
[1729740438390,1.01005528,67392.0,67391.0,0.00149643]
[1729740438391,1.01629017,67392.0,67391.0,0.00149643]
[1729740438612,0.92741705,67392.0,67391.0,0.00149643]
[1729740439316,0.93222583,67392.0,67391.0,0.00149643]
[1729740439748,0.93222583,67392.0,67379.0,0.000825]
[1729740439749,0.61294778,67381.0,67379.0,0.000825]
[1729740439969,0.9274245,67381.0,67379.0,0.000825]
[1729740440375,0.76345159,67381.0,67379.0,0.000825]
[1729740441223,0.83001326,67381.0,67379.0,0.000825]
[1729740441442,0.82801326,67381.0,67379.0,0.000825]
[1729740441643,0.83001326,67381.0,67379.0,0.000825]
[1729740442265,0.76345159,67381.0,67379.0,0.000825]
[1729740442906,0.86650386,67381.0,67379.0,0.000825]
[1729740443326,0.93302685,67381.0,67379.0,0.000825]
[1729740443529,0.93302485,67381.0,67379.0,0.000825]
[1729740443973,1.03020822,67381.0,67379.0,0.000825]
[1729740444201,1.11888003,67381.0,67379.0,0.000825]
[1729740445866,1.03020822,67381.0,67379.0,0.000825]
[1729740446348,0.86650386,67381.0,67379.0,0.000825]
[1729740446575,1.03008474,67381.0,67379.0,0.000825]
[1729740446813,1.11875655,67381.0,67379.0,0.000825]
[1729740447302,1.03008474,67381.0,67379.0,0.000825]
[1729740447783,0.258729,67380.0,67379.0,0.000825]
[1729740448007,0.258729,67380.0,67366.0,0.000825]
[1729740448008,0.423552,67367.0,67366.0,0.000825]
[1729740448234,0.60837278,67367.0,67366.0,0.000825]
[1729740448420,0.76387659,67367.0,67366.0,0.000825]
[1729740449278,0.76587659,67367.0,67366.0,0.000825]
[1729740450329,0.76387659,67367.0,67366.0,0.000825]
[1729740450936,0.76587659,67367.0,67366.0,0.000825]
[1729740453959,0.77054657,67367.0,67366.0,0.000825]
[1729740456404,0.77054657,67367.0,67355.0,0.000825]
[1729740456405,0.52248139,67356.0,67355.0,0.000825]
[1729740456635,0.76389559,67356.0,67355.0,0.000825]
[1729740457338,0.6729852,67356.0,67355.0,0.000825]
[1729740457804,0.76589559,67356.0,67355.0,0.000825]
[1729740458053,0.76389559,67356.0,67355.0,0.000825]
[1729740458308,0.9143994,67356.0,67355.0,0.000825]
[1729740458804,0.9163994,67356.0,67355.0,0.000825]
[1729740460211,0.92114429,67356.0,67355.0,0.000825]
[1729740461295,0.91914429,67356.0,67355.0,0.000825]
[1729740462548,0.92114429,67356.0,67355.0,0.000825]
[1729740464492,0.73732351,67356.0,67355.0,0.000825]
[1729740464703,0.67773009,67356.0,67355.0,0.000825]
[1729740466458,0.4120197,67356.0,67355.0,0.000825]
[1729740466701,0.40293009,67356.0,67355.0,0.000825]
[1729740467767,0.50293009,67356.0,67355.0,0.000825]
[1729740468579,0.4120197,67356.0,67355.0,0.000825]
[1729740468813,0.50293009,67356.0,67355.0,0.000825]
[1729740469014,0.4881852,67356.0,67355.0,0.000825]
[1729740469637,0.4931852,67356.0,67355.0,0.000825]
[1729740469847,0.4881852,67356.0,67355.0,0.000825]
[1729740470075,0.4931852,67356.0,67355.0,0.000825]
[1729740470280,0.4881852,67356.0,67355.0,0.000825]
[1729740471166,0.4931852,67356.0,67355.0,0.000825]
[1729740471442,0.4881852,67356.0,67355.0,0.000825]
[1729740471646,0.4931852,67356.0,67355.0,0.000825]
[1729740472488,0.4881852,67356.0,67355.0,0.000825]
[1729740472909,0.005,67357.0,67355.0,0.000825]
[1729740473331,0.005,67362.0,67356.0,0.01726977]
[1729740473543,0.00222687,67359.0,67357.0,0.1825]
[1729740473754,0.00222687,67359.0,67358.0,0.301268]
[1729740473983,0.22232268,67369.0,67359.0,0.0831]
[1729740474601,0.22232268,67369.0,67360.0,0.01723695]
[1729740475210,0.00165,67366.0,67360.0,0.01723695]
[1729740476330,0.00222665,67365.0,67360.0,0.01723695]
[1729740479455,0.13554731,67362.0,67360.0,0.01723695]
[1729740479669,0.118763,67361.0,67360.0,0.01723695]
[1729740479875,0.141763,67361.0,67360.0,0.01723695]
[1729740480089,0.118767,67359.0,67355.0,0.000825]
[1729740480267,0.13554731,67358.0,67355.0,0.000825]
[1729740482392,0.15854731,67362.0,67355.0,0.000825]
[1729740482610,0.005,67363.0,67355.0,0.000825]
[1729740482825,0.22232268,67362.0,67355.0,0.000825]
[1729740483031,0.22232268,67362.0,67356.0,0.02405433]
[1729740483460,0.005,67364.0,67356.0,0.02405433]
[1729740483672,0.005,67364.0,67357.0,0.0758]
[1729740483883,0.00222665,67365.0,67358.0,0.0959]
[1729740484089,0.00222665,67365.0,67358.0,0.11995299]
[1729740485806,0.00222665,67365.0,67364.0,0.194557]
[1729740486227,0.00222665,67365.0,67364.0,0.21858528]
[1729740486437,0.00165,67366.0,67365.0,0.118756]
[1729740486891,0.00165,67366.0,67365.0,0.1427836]
[1729740487099,0.00165,67366.0,67365.0,0.0240276]
[1729740487962,0.00165,67366.0,67365.0,0.1427836]
[1729740488447,0.00165,67366.0,67365.0,0.36873091]
[1729740488926,0.00165,67366.0,67365.0,0.2331836]
[1729740490932,0.00165,67366.0,67365.0,0.61197712]
[1729740496941,0.00165,67366.0,67365.0,0.62302597]
[1729740498171,0.00165,67366.0,67365.0,0.60733472]
[1729740498385,0.00165,67366.0,67365.0,0.48748234]
[1729740499129,0.00165,67366.0,67365.0,0.49235752]
[1729740499962,0.00165,67366.0,67365.0,0.48748234]
[1729740500569,0.00165,67366.0,67365.0,0.50330609]
[1729740500929,0.00165,67366.0,67365.0,0.48736316]
[1729740502212,0.00165,67366.0,67365.0,0.4763104]
[1729740502405,0.00165,67366.0,67365.0,0.48736776]
[1729740502804,0.00165,67366.0,67365.0,0.49736776]
[1729740505800,0.00165,67366.0,67365.0,0.4973674]
[1729740506229,0.00165,67366.0,67365.0,0.48697811]
[1729740506784,0.00165,67379.0,67378.0,0.309733]
[1729740506983,0.00165,67379.0,67378.0,0.32543217]
[1729740507187,0.00165,67379.0,67378.0,0.33893032]
[1729740508933,0.00075341,67379.0,67378.0,0.33893032]
[1729740509610,0.00075341,67379.0,67378.0,0.33892269]
[1729740512453,0.00075341,67379.0,67378.0,0.4894265]
[1729740512882,0.00075341,67379.0,67378.0,0.47373496]
[1729740513100,0.00075341,67379.0,67378.0,0.48479045]
[1729740513321,0.00075341,67379.0,67378.0,0.47373496]
[1729740513464,0.00075341,67379.0,67378.0,0.48479443]
[1729740514957,0.00075341,67379.0,67378.0,0.48861544]
[1729740517688,0.00075341,67379.0,67378.0,0.49061544]
[1729740518211,0.00075341,67379.0,67378.0,0.59061544]
[1729740518410,0.00075341,67379.0,67378.0,0.72616275]
[1729740518614,0.00165,67392.0,67390.0,0.293811]
[1729740518937,0.00165,67392.0,67390.0,0.59092159]
[1729740519143,0.00165,67392.0,67390.0,0.6082233]
[1729740519348,0.00165,67392.0,67390.0,0.02836118]
[1729740519515,0.00165,67392.0,67391.0,0.12976947]
[1729740519890,0.00165,67392.0,67391.0,0.29540432]
[1729740520890,0.00165,67392.0,67391.0,0.29540523]
[1729740535315,0.00165,67392.0,67391.0,0.28434633]
[1729740535526,0.00165,67392.0,67391.0,0.29542974]
[1729740539142,0.00165,67392.0,67391.0,0.29543491]
[1729740541489,0.00165,67392.0,67391.0,0.29543788]
[1729740541917,0.00165,67392.0,67391.0,0.14493407]
[1729740545144,0.00165,67392.0,67391.0,0.29543854]
[1729740545354,0.00165,67392.0,67391.0,0.29840596]
[1729740545564,0.00165,67392.0,67391.0,0.29543822]
[1729740545777,0.00165,67392.0,67391.0,0.38630965]
[1729740545989,0.00165,67392.0,67391.0,0.48620965]
[1729740548059,0.00165,67392.0,67391.0,0.38630965]
[1729740551839,0.00165,67392.0,67391.0,0.29543822]
[1729740552282,0.00165,67392.0,67391.0,0.28434633]
[1729740552490,0.00165,67392.0,67391.0,0.29542463]
[1729740554256,0.00165,67392.0,67391.0,0.14492082]
[1729740555832,0.00165,67392.0,67391.0,0.13384252]
[1729740556037,0.00165,67392.0,67391.0,0.14492173]
[1729740559577,0.00165,67392.0,67391.0,0.13384252]
[1729740559788,0.00165,67392.0,67391.0,0.14492227]
[1729740563437,0.00165,67392.0,67391.0,0.14492332]
[1729740567070,0.00165,67392.0,67391.0,0.14492504]
[1729740567285,0.00165,67392.0,67391.0,0.29542885]
[1729740567500,0.00165,67392.0,67391.0,0.29542831]
[1729740570655,0.00165,67392.0,67391.0,0.28434633]
[1729740570864,0.00165,67392.0,67391.0,0.29542862]
[1729740578032,0.00165,67392.0,67391.0,0.28434633]
[1729740578272,0.00165,67392.0,67391.0,0.29542848]
[1729740589224,0.00165,67392.0,67391.0,0.28434633]
[1729740589623,0.00140582,67392.0,67391.0,0.28434633]
[1729740600612,0.04593893,67392.0,67391.0,0.28434633]
[1729740600826,0.00140582,67392.0,67391.0,0.28434633]
[1729740601660,0.13693893,67392.0,67391.0,0.01513252]
[1729740601864,0.15920549,67392.0,67391.0,0.01513252]
[1729740602066,0.21111382,67392.0,67391.0,0.01513252]
[1729740602279,0.18691264,67392.0,67391.0,0.01513252]
[1729740602686,0.06820464,67392.0,67391.0,0.01513252]
[1729740603325,0.18691264,67392.0,67391.0,0.01513252]
[1729740604380,0.06820464,67392.0,67391.0,0.01513252]
[1729740604590,0.18691264,67392.0,67391.0,0.01513252]
[1729740605416,0.06820464,67392.0,67391.0,0.01513252]
[1729740605593,0.18691264,67392.0,67391.0,0.01513252]
[1729740605828,0.06820464,67392.0,67391.0,0.01513252]
[1729740606042,0.18691264,67392.0,67391.0,0.01513252]
[1729740606422,0.18690141,67392.0,67391.0,0.01513252]
[1729740608339,0.12011382,67392.0,67391.0,0.01513252]
[1729740609828,0.47677258,67392.0,67391.0,0.01513252]
[1729740610035,0.56616623,67392.0,67391.0,0.01513252]
[1729740610242,0.71643832,67392.0,67391.0,0.01513252]
[1729740610448,0.56616623,67392.0,67391.0,0.01513252]
[1729740611039,0.40181382,67392.0,67391.0,0.01513252]
[1729740611246,0.56606515,67392.0,67391.0,0.01513252]
[1729740612275,0.56106515,67392.0,67391.0,0.01513252]
[1729740612485,0.56606515,67392.0,67391.0,0.01513252]
[1729740613307,0.69938762,67392.0,67391.0,0.01513252]
[1729740613516,0.56606515,67392.0,67391.0,0.01513252]
[1729740614156,0.69938395,67392.0,67391.0,0.01513252]
[1729740614361,0.56606515,67392.0,67391.0,0.01513252]
[1729740615871,0.56077862,67392.0,67391.0,0.01513252]
[1729740616073,0.56577862,67392.0,67391.0,0.01513252]
[1729740616697,0.56077862,67392.0,67391.0,0.01513252]
[1729740616901,0.56577862,67392.0,67391.0,0.01513252]
[1729740617528,0.21871,67391.0,67390.0,0.2]
[1729740617737,0.65024623,67391.0,67390.0,0.2]
[1729740620360,0.83075004,67391.0,67390.0,0.2]
[1729740620572,0.82875004,67391.0,67390.0,0.2]
[1729740626245,0.82875004,67391.0,67390.0,0.200825]
[1729740635417,0.82856881,67391.0,67390.0,0.200825]
[1729740636601,0.99107262,67391.0,67390.0,0.200825]
[1729740636802,1.12417926,67391.0,67390.0,0.200825]
[1729740637186,0.99107262,67391.0,67390.0,0.200825]
[1729740637396,0.118729,67380.0,67379.0,0.000825]
[1729740637618,0.57897567,67380.0,67379.0,0.000825]
[1729740637859,0.74404231,67380.0,67379.0,0.000825]
[1729740638073,0.81914231,67380.0,67379.0,0.000825]
[1729740638300,0.81913849,67380.0,67379.0,0.000825]
[1729740639767,0.75257567,67380.0,67379.0,0.000825]
[1729740639985,0.81913931,67380.0,67379.0,0.000825]
[1729740640647,0.96964312,67380.0,67379.0,0.000825]
[1729740641517,1.15763587,67380.0,67379.0,0.000825]
[1729740641724,1.16763587,67380.0,67379.0,0.000825]
[1729740641934,1.18982375,67380.0,67379.0,0.000825]
[1729740642163,1.19461852,67380.0,67379.0,0.000825]
[1729740643178,1.08367912,67380.0,67379.0,0.000825]
[1729740643583,1.19461162,67380.0,67379.0,0.000825]
[1729740644522,1.19261162,67380.0,67379.0,0.000825]
[1729740644743,1.04210781,67380.0,67379.0,0.000825]
[1729740645401,0.76737044,67380.0,67379.0,0.000825]
[1729740647080,0.93121017,67380.0,67379.0,0.000825]
[1729740648067,0.99060117,67380.0,67379.0,0.000825]
[1729740648472,1.13735069,67380.0,67379.0,0.000825]
[1729740648900,0.63046354,67380.0,67379.0,0.000825]
[1729740649097,0.38756873,67380.0,67379.0,0.000825]
[1729740649306,0.39756873,67380.0,67379.0,0.000825]
[1729740650381,0.42056873,67380.0,67379.0,0.000825]
[1729740653579,0.41056873,67380.0,67379.0,0.000825]
[1729740653831,0.42056873,67380.0,67379.0,0.000825]
[1729740656013,0.256729,67380.0,67379.0,0.000825]
[1729740657677,0.42079396,67380.0,67379.0,0.000825]
[1729740660902,0.42079719,67380.0,67379.0,0.000825]
[1729740661521,0.53278725,67380.0,67379.0,0.000825]
[1729740661992,0.62365868,67380.0,67379.0,0.000825]
[1729740662408,0.77416249,67380.0,67379.0,0.000825]
[1729740662632,0.90750045,67380.0,67379.0,0.000825]
[1729740663952,0.79551039,67380.0,67379.0,0.000825]
[1729740664390,0.66217243,67380.0,67379.0,0.000825]
[1729740664822,0.66417243,67380.0,67379.0,0.000825]
[1729740665001,0.66217243,67380.0,67379.0,0.000825]
[1729740665211,0.66219921,67380.0,67379.0,0.000825]
[1729740665409,0.81270302,67380.0,67379.0,0.000825]
[1729740668166,1.2068257,67380.0,67379.0,0.000825]
[1729740668372,0.433431,67379.0,67378.0,0.00035358]
[1729740668586,0.62911608,67379.0,67378.0,0.00035358]
[1729740668791,0.94371486,67379.0,67378.0,0.00035358]
[1729740669445,0.79121105,67379.0,67378.0,0.00035358]
[1729740671152,0.79321105,67379.0,67378.0,0.00035358]
[1729740671819,0.79121105,67379.0,67378.0,0.00035358]
[1729740673549,0.79321105,67379.0,67378.0,0.00035358]
[1729740678410,0.79321105,67379.0,67365.0,0.000825]
[1729740678411,0.223754,67366.0,67365.0,0.000825]
[1729740678621,0.38784897,67366.0,67365.0,0.000825]
[1729740678830,0.38784897,67366.0,67365.0,0.02634421]
[1729740679055,0.38784897,67366.0,67365.0,0.000825]
[1729740679249,0.38284897,67366.0,67365.0,0.000825]
[1729740679455,0.38786135,67366.0,67365.0,0.098225]
[1729740679902,0.38786135,67366.0,67365.0,0.176725]
[1729740680113,0.38286135,67366.0,67365.0,0.176725]
[1729740680555,0.37178146,67366.0,67365.0,0.176725]
[1729740682253,0.28286135,67366.0,67365.0,0.176725]
[1729740682664,0.37181935,67366.0,67365.0,0.176725]
[1729740683207,0.37182032,67366.0,67365.0,0.176725]
[1729740683838,0.28286135,67366.0,67365.0,0.176725]
[1729740684197,0.37183044,67366.0,67365.0,0.176725]
[1729740687583,0.28286135,67366.0,67365.0,0.176725]
[1729740688928,0.2829792,67366.0,67365.0,0.176725]
[1729740692737,0.3942005,67366.0,67365.0,0.176725]
[1729740696651,0.61652318,67366.0,67365.0,0.000825]
[1729740696864,0.2829792,67366.0,67365.0,0.000825]
[1729740697987,0.42846062,67366.0,67365.0,0.000825]
[1729740698684,0.3059792,67366.0,67365.0,0.000825]
[1729740699313,0.43947933,67366.0,67365.0,0.000825]
[1729740699530,0.2829792,67366.0,67365.0,0.000825]
[1729740704836,0.59617331,67366.0,67365.0,0.000825]
[1729740705009,0.63035076,67366.0,67365.0,0.000825]
[1729740705394,0.49685063,67366.0,67365.0,0.000825]
[1729740705784,0.74322587,67366.0,67365.0,0.000825]
[1729740706000,0.89372968,67366.0,67365.0,0.000825]
[1729740707492,0.89572968,67366.0,67365.0,0.000825]
[1729740707700,0.93707374,67366.0,67365.0,0.000825]
[1729740708129,0.94176885,67366.0,67365.0,0.000825]
[1729740708975,0.94176244,67366.0,67365.0,0.000825]
[1729740709199,0.89853881,67366.0,67365.0,0.000825]
[1729740709400,0.94176241,67366.0,67365.0,0.000825]
[1729740709604,0.89853881,67366.0,67365.0,0.000825]
[1729740710031,0.943756,67366.0,67365.0,0.000825]
[1729740710455,0.90053881,67366.0,67365.0,0.000825]
[1729740710604,0.94375073,67366.0,67365.0,0.000825]
[1729740710809,1.07723881,67366.0,67365.0,0.000825]
[1729740711037,1.12045105,67366.0,67365.0,0.000825]
[1729740711612,1.13045105,67366.0,67365.0,0.000825]
[1729740711820,1.12845105,67366.0,67365.0,0.000825]
[1729740712153,1.13045105,67366.0,67365.0,0.000825]
[1729740712439,1.12845105,67366.0,67365.0,0.000825]
[1729740712648,1.12840167,67366.0,67365.0,0.000825]
[1729740712864,0.97789786,67366.0,67365.0,0.000825]
[1729740713036,0.84381419,67366.0,67365.0,0.000825]
[1729740713699,0.93468562,67366.0,67365.0,0.000825]
[1729740713916,0.84381419,67366.0,67365.0,0.000825]
[1729740714114,0.93468562,67366.0,67365.0,0.000825]
[1729740714340,0.996318,67366.0,67365.0,0.000825]
[1729740714520,0.994318,67366.0,67365.0,0.000825]
[1729740714875,1.08518943,67366.0,67365.0,0.000825]
[1729740715480,1.23536573,67366.0,67365.0,0.000825]
[1729740715886,1.08518943,67366.0,67365.0,0.000825]
[1729740716088,1.23536573,67366.0,67365.0,0.000825]
[1729740716585,1.08018943,67366.0,67365.0,0.000825]
[1729740717507,1.23031244,67366.0,67365.0,0.000825]
[1729740718338,1.23231244,67366.0,67365.0,0.000825]
[1729740718518,1.08014511,67366.0,67365.0,0.000825]
[1729740718858,1.07514511,67366.0,67365.0,0.000825]
[1729740719059,0.9246413,67366.0,67365.0,0.000825]
[1729740719464,0.83376987,67366.0,67365.0,0.000825]
[1729740719666,0.74289844,67366.0,67365.0,0.000825]
[1729740720053,0.38299952,67366.0,67365.0,0.000825]
[1729740720446,0.47387095,67366.0,67365.0,0.000825]
[1729740721092,0.47383307,67366.0,67365.0,0.000825]
[1729740721354,0.49683307,67366.0,67365.0,0.000825]
[1729740721589,0.78078817,67366.0,67365.0,0.000825]
[1729740721801,1.02716341,67366.0,67365.0,0.000825]
[1729740722356,0.89371212,67366.0,67365.0,0.000825]
[1729740722920,0.89571212,67366.0,67365.0,0.000825]
[1729740723327,1.04584482,67366.0,67365.0,0.000825]
[1729740723752,1.04384482,67366.0,67365.0,0.000825]
[1729740724357,0.89371212,67366.0,67365.0,0.000825]
[1729740724923,0.89571212,67366.0,67365.0,0.000825]
[1729740725376,1.04584482,67366.0,67365.0,0.000825]
[1729740725587,0.89571212,67366.0,67365.0,0.000825]
[1729740725830,1.04384097,67366.0,67365.0,0.000825]
[1729740726244,0.86209811,67366.0,67365.0,0.000825]
[1729740726448,1.04384097,67366.0,67365.0,0.000825]
[1729740726778,1.04584097,67366.0,67365.0,0.000825]
[1729740727767,0.89571212,67366.0,67365.0,0.000825]
[1729740728185,1.04584097,67366.0,67365.0,0.000825]
[1729740729140,0.89571212,67366.0,67365.0,0.000825]
[1729740730110,0.8936934,67366.0,67365.0,0.000825]
[1729740730307,1.04580898,67366.0,67365.0,0.000825]
[1729740732024,1.0890155,67366.0,67365.0,0.000825]
[1729740732235,1.04769992,67366.0,67365.0,0.000825]
[1729740734038,1.1978271,67366.0,67365.0,0.000825]
[1729740734259,1.04769992,67366.0,67365.0,0.000825]
[1729740734725,1.19783015,67366.0,67365.0,0.000825]
[1729740734968,1.19583015,67366.0,67365.0,0.000825]